[Event "Early-Titled-Tuesday-Blitz-January-30-2024"]
[Site "Chess.com"]
[Date "2024.01.30"]
[Round "6"]
[White "chito89"]
[Black "hakanazeri2"]
[Result "1-0"]
[WhiteElo "2904"]
[BlackElo "2611"]
[TimeControl "180+1"]
[EndTime "9:08:04 PST"]
[Termination "chito89 won by resignation"]

1. e4 {[%clk 0:02:59.3]} 1... c5 {[%clk 0:02:53.9]} 2. Nf3 {[%clk 0:02:59]} 2...
Nc6 {[%clk 0:02:53.3]} 3. Bb5 {[%clk 0:02:58.2]} 3... e6 {[%clk 0:02:53.4]} 4.
O-O {[%clk 0:02:52.2]} 4... Qb6 {[%clk 0:02:51.5]} 5. Nc3 {[%clk 0:02:47.6]}
5... Nd4 {[%clk 0:02:50.2]} 6. Bd3 {[%clk 0:02:42.8]} 6... Nxf3+ {[%clk
0:02:25]} 7. Qxf3 {[%clk 0:02:43.7]} 7... a6 {[%clk 0:02:25.6]} 8. b3 {[%clk
0:02:35.1]} 8... Qc7 {[%clk 0:02:14.9]} 9. Bb2 {[%clk 0:02:32.1]} 9... Bd6
{[%clk 0:02:14.5]} 10. Qh3 {[%clk 0:02:23]} 10... Nf6 {[%clk 0:02:06]} 11. Ne2
{[%clk 0:02:17.2]} 11... Be7 {[%clk 0:01:46.3]} 12. e5 {[%clk 0:02:07.4]} 12...
Nd5 {[%clk 0:01:42.9]} 13. c4 {[%clk 0:02:06.8]} 13... Nb4 {[%clk 0:01:36.5]}
14. Be4 {[%clk 0:02:03.7]} 14... Nc6 {[%clk 0:01:30.8]} 15. f4 {[%clk
0:01:27.9]} 15... b5 {[%clk 0:01:24.8]} 16. d3 {[%clk 0:01:26.8]} 16... Bb7
{[%clk 0:01:24.4]} 17. Kh1 {[%clk 0:01:15.4]} 17... Nb4 {[%clk 0:01:01.2]} 18.
f5 {[%clk 0:01:02.4]} 18... Bxe4 {[%clk 0:00:52.1]} 19. dxe4 {[%clk 0:01:03.3]}
19... bxc4 {[%clk 0:00:51.1]} 20. bxc4 {[%clk 0:01:02.4]} 20... O-O-O {[%clk
0:00:45.2]} 21. fxe6 {[%clk 0:00:51.3]} 21... fxe6 {[%clk 0:00:44.7]} 22. Rf7
{[%clk 0:00:51.9]} 22... Rde8 {[%clk 0:00:43.7]} 23. Rxg7 {[%clk 0:00:45.5]}
23... Rhf8 {[%clk 0:00:41.8]} 24. Qxh7 {[%clk 0:00:42.4]} 24... Rf2 {[%clk
0:00:38.6]} 25. Bc3 {[%clk 0:00:29.6]} 25... Bf8 {[%clk 0:00:16]} 26. Rg8 {[%clk
0:00:26.4]} 26... Rxe2 {[%clk 0:00:15.8]} 27. Qh5 {[%clk 0:00:25.8]} 1-0

[Event "Early-Titled-Tuesday-Blitz-January-30-2024"]
[Site "Chess.com"]
[Date "2024.01.30"]
[Round "6"]
[White "Hikaru"]
[Black "Aslanov_Umid"]
[Result "1-0"]
[WhiteElo "3274"]
[BlackElo "2654"]
[TimeControl "180+1"]
[EndTime "9:08:05 PST"]
[Termination "Hikaru won by checkmate"]

1. e4 {[%clk 0:03:00.9]} 1... c5 {[%clk 0:02:59]} 2. Nf3 {[%clk 0:02:58.8]} 2...
d6 {[%clk 0:02:59.6]} 3. c3 {[%clk 0:02:58.5]} 3... Nf6 {[%clk 0:02:59.1]} 4.
Bd3 {[%clk 0:02:58.2]} 4... e6 {[%clk 0:02:58.3]} 5. Bc2 {[%clk 0:02:58.5]} 5...
Be7 {[%clk 0:02:58.9]} 6. d4 {[%clk 0:02:58.8]} 6... cxd4 {[%clk 0:02:58.5]} 7.
cxd4 {[%clk 0:02:59.3]} 7... O-O {[%clk 0:02:57.4]} 8. Nc3 {[%clk 0:02:59]} 8...
b6 {[%clk 0:02:55.5]} 9. Qe2 {[%clk 0:02:56.8]} 9... Bb7 {[%clk 0:02:49.8]} 10.
O-O {[%clk 0:02:56.1]} 10... Nbd7 {[%clk 0:02:49.1]} 11. e5 {[%clk 0:02:56.4]}
11... dxe5 {[%clk 0:02:36.4]} 12. dxe5 {[%clk 0:02:56.8]} 12... Nd5 {[%clk
0:02:36.6]} 13. Ne4 {[%clk 0:02:50.9]} 13... Rc8 {[%clk 0:02:24.3]} 14. Neg5
{[%clk 0:02:38.4]} 14... g6 {[%clk 0:02:19]} 15. Rd1 {[%clk 0:02:19.6]} 15...
Qc7 {[%clk 0:02:14.1]} 16. Bb3 {[%clk 0:02:09.2]} 16... Rfe8 {[%clk 0:02:05.6]}
17. Bd2 {[%clk 0:02:04.8]} 17... Nc5 {[%clk 0:01:58]} 18. Rac1 {[%clk
0:02:04.6]} 18... Qb8 {[%clk 0:01:55.8]} 19. Bc4 {[%clk 0:02:04.7]} 19... Qa8
{[%clk 0:01:42.8]} 20. Bb5 {[%clk 0:02:00.8]} 20... Red8 {[%clk 0:01:41.3]} 21.
b4 {[%clk 0:02:00.9]} 21... Nd7 {[%clk 0:01:39.6]} 22. Rxc8 {[%clk 0:01:59.3]}
22... Qxc8 {[%clk 0:01:30.4]} 23. Rc1 {[%clk 0:01:58.1]} 23... Qb8 {[%clk
0:01:30.8]} 24. a3 {[%clk 0:01:58]} 24... a6 {[%clk 0:01:19.9]} 25. Bxa6 {[%clk
0:01:38.6]} 25... Bxa6 {[%clk 0:01:20]} 26. Qxa6 {[%clk 0:01:39.5]} 26... Nxe5
{[%clk 0:01:20.6]} 27. Nxe5 {[%clk 0:01:39.6]} 27... Qxe5 {[%clk 0:01:21.5]} 28.
Nf3 {[%clk 0:01:40.5]} 28... Qb2 {[%clk 0:01:16.7]} 29. Rf1 {[%clk 0:01:26.4]}
29... Bf6 {[%clk 0:01:10.9]} 30. h4 {[%clk 0:01:21.5]} 30... h5 {[%clk
0:01:01.5]} 31. Bh6 {[%clk 0:01:18.1]} 31... e5 {[%clk 0:00:41.4]} 32. Re1
{[%clk 0:01:06]} 32... Qc2 {[%clk 0:00:27.6]} 33. Qb7 {[%clk 0:00:44.4]} 33...
e4 {[%clk 0:00:24.1]} 34. Ng5 {[%clk 0:00:44.6]} 34... Bxg5 {[%clk 0:00:18.8]}
35. Bxg5 {[%clk 0:00:45.5]} 35... Qc8 {[%clk 0:00:11.8]} 36. Qxc8 {[%clk
0:00:41.4]} 36... Rxc8 {[%clk 0:00:12.7]} 37. Rxe4 {[%clk 0:00:41.9]} 37... Ra8
{[%clk 0:00:12.6]} 38. Bc1 {[%clk 0:00:39]} 38... Rc8 {[%clk 0:00:12.3]} 39. Bb2
{[%clk 0:00:39.3]} 39... Rc2 {[%clk 0:00:12.9]} 40. Re8+ {[%clk 0:00:39.3]}
40... Kh7 {[%clk 0:00:12.2]} 41. Rh8# {[%clk 0:00:40.2]} 1-0

[Event "Early-Titled-Tuesday-Blitz-January-30-2024"]
[Site "Chess.com"]
[Date "2024.01.30"]
[Round "6"]
[White "chessdjw"]
[Black "chess123456s"]
[Result "1-0"]
[WhiteElo "2739"]
[BlackElo "2566"]
[TimeControl "180+1"]
[EndTime "9:08:05 PST"]
[Termination "chessdjw won on time"]

1. Nf3 {[%clk 0:02:56.9]} 1... Nf6 {[%clk 0:02:59.2]} 2. g3 {[%clk 0:02:56.6]}
2... d5 {[%clk 0:02:59.3]} 3. Bg2 {[%clk 0:02:57.1]} 3... g6 {[%clk 0:02:57.3]}
4. c4 {[%clk 0:02:56]} 4... c6 {[%clk 0:02:54]} 5. b3 {[%clk 0:02:56.1]} 5...
Bg7 {[%clk 0:02:53.3]} 6. Bb2 {[%clk 0:02:56.6]} 6... O-O {[%clk 0:02:53.8]} 7.
O-O {[%clk 0:02:56.9]} 7... Re8 {[%clk 0:02:51.6]} 8. d4 {[%clk 0:02:53.8]} 8...
Bf5 {[%clk 0:02:48.4]} 9. Nc3 {[%clk 0:02:53.3]} 9... Ne4 {[%clk 0:02:43.8]} 10.
e3 {[%clk 0:02:49.1]} 10... Nxc3 {[%clk 0:02:41.6]} 11. Bxc3 {[%clk 0:02:50]}
11... Be4 {[%clk 0:02:42.5]} 12. Qe2 {[%clk 0:02:50.1]} 12... Nd7 {[%clk
0:02:39.8]} 13. Bh3 {[%clk 0:02:49.2]} 13... Bxf3 {[%clk 0:02:37.6]} 14. Qxf3
{[%clk 0:02:50.1]} 14... e6 {[%clk 0:02:37.9]} 15. Rfc1 {[%clk 0:02:45.6]} 15...
f5 {[%clk 0:02:30.2]} 16. a4 {[%clk 0:02:43.3]} 16... Nf6 {[%clk 0:02:29.5]} 17.
b4 {[%clk 0:02:38.8]} 17... dxc4 {[%clk 0:02:23.1]} 18. Bf1 {[%clk 0:02:36.2]}
18... Qd5 {[%clk 0:02:16.8]} 19. Qe2 {[%clk 0:02:34.5]} 19... b5 {[%clk
0:02:09.5]} 20. axb5 {[%clk 0:02:20.7]} 20... cxb5 {[%clk 0:02:08.4]} 21. Bg2
{[%clk 0:02:21.2]} 21... Ne4 {[%clk 0:02:07.5]} 22. Ra6 {[%clk 0:02:20.9]} 22...
e5 {[%clk 0:01:44.3]} 23. dxe5 {[%clk 0:02:17.3]} 23... Bxe5 {[%clk 0:01:12.6]}
24. Bxe5 {[%clk 0:01:58.9]} 24... Qxe5 {[%clk 0:01:09.2]} 25. Qa2 {[%clk
0:01:59.8]} 25... Qe7 {[%clk 0:01:02.8]} 26. Qa5 {[%clk 0:01:56.5]} 26... Nxf2
{[%clk 0:00:41.9]} 27. Bxa8 {[%clk 0:01:42.2]} 27... Qxe3 {[%clk 0:00:22.5]} 28.
Bd5+ {[%clk 0:01:42.4]} 28... Kg7 {[%clk 0:00:13.8]} 29. Qc7+ {[%clk 0:01:19.5]}
29... Re7 {[%clk 0:00:07]} 30. Qxe7+ {[%clk 0:01:15.5]} 30... Qxe7 {[%clk
0:00:07.9]} 31. Kxf2 {[%clk 0:01:15.8]} 31... Qxb4 {[%clk 0:00:06.7]} 32. Rd1
{[%clk 0:01:03.4]} 32... Qc5+ {[%clk 0:00:06.7]} 33. Kg2 {[%clk 0:01:03.3]}
33... c3 {[%clk 0:00:07]} 34. Rc6 {[%clk 0:01:03.4]} 34... Qe3 {[%clk
0:00:05.3]} 35. Bf3 {[%clk 0:00:57.3]} 35... b4 {[%clk 0:00:04.4]} 36. Rd7+
{[%clk 0:00:57.9]} 36... Kh6 {[%clk 0:00:04.5]} 37. Rcc7 {[%clk 0:00:57.9]}
37... Kg5 {[%clk 0:00:01.7]} 38. h4+ {[%clk 0:00:54.9]} 38... Kf6 {[%clk
0:00:02.3]} 39. Rc6+ {[%clk 0:00:52.8]} 1-0

[Event "Early-Titled-Tuesday-Blitz-January-30-2024"]
[Site "Chess.com"]
[Date "2024.01.30"]
[Round "6"]
[White "FlemingA"]
[Black "djano"]
[Result "1-0"]
[WhiteElo "2461"]
[BlackElo "2673"]
[TimeControl "180+1"]
[EndTime "9:08:08 PST"]
[Termination "FlemingA won by resignation"]

1. e4 {[%clk 0:02:59.7]} 1... c5 {[%clk 0:03:00.4]} 2. Nf3 {[%clk 0:02:59.1]}
2... Nc6 {[%clk 0:03:00.7]} 3. Bb5 {[%clk 0:02:58.3]} 3... d5 {[%clk 0:03:00.4]}
4. exd5 {[%clk 0:02:53.7]} 4... Qxd5 {[%clk 0:03:01.3]} 5. Nc3 {[%clk
0:02:47.6]} 5... Qe6+ {[%clk 0:02:57.6]} 6. Ne2 {[%clk 0:02:39.2]} 6... a6
{[%clk 0:02:57.5]} 7. Bxc6+ {[%clk 0:02:38.2]} 7... Qxc6 {[%clk 0:02:57.3]} 8.
d4 {[%clk 0:02:27.2]} 8... Bg4 {[%clk 0:02:46.4]} 9. d5 {[%clk 0:01:23.7]} 9...
Qf6 {[%clk 0:02:35.4]} 10. Nf4 {[%clk 0:01:14.1]} 10... g5 {[%clk 0:02:24.2]}
11. Nd3 {[%clk 0:01:09.4]} 11... Bxf3 {[%clk 0:02:15.2]} 12. Qxf3 {[%clk
0:01:09.3]} 12... Qxf3 {[%clk 0:02:12.6]} 13. gxf3 {[%clk 0:01:09.5]} 13...
O-O-O {[%clk 0:02:04]} 14. c4 {[%clk 0:01:04.5]} 14... e6 {[%clk 0:02:00.8]} 15.
Bxg5 {[%clk 0:01:02.1]} 15... f6 {[%clk 0:02:01.2]} 16. Be3 {[%clk 0:01:01.9]}
16... exd5 {[%clk 0:02:01.6]} 17. cxd5 {[%clk 0:00:52.9]} 17... c4 {[%clk
0:02:01.8]} 18. Nf4 {[%clk 0:00:51.4]} 18... Ne7 {[%clk 0:01:54.9]} 19. Rc1
{[%clk 0:00:46.5]} 19... b5 {[%clk 0:01:53.6]} 20. b3 {[%clk 0:00:46.4]} 20...
Nxd5 {[%clk 0:01:48.4]} 21. bxc4 {[%clk 0:00:39.4]} 21... Nxe3 {[%clk
0:01:35.5]} 22. cxb5+ {[%clk 0:00:33]} 22... Kb8 {[%clk 0:01:35.9]} 23. fxe3
{[%clk 0:00:32]} 23... Bb4+ {[%clk 0:01:36.2]} 24. Kf2 {[%clk 0:00:25.5]} 24...
Rd2+ {[%clk 0:01:34.2]} 25. Ne2 {[%clk 0:00:25.6]} 25... Rhd8 {[%clk 0:01:25.4]}
26. bxa6 {[%clk 0:00:19.3]} 26... Ka7 {[%clk 0:01:24.4]} 27. f4 {[%clk
0:00:13.5]} 27... Rxa2 {[%clk 0:01:22.1]} 28. Kf3 {[%clk 0:00:13]} 28... Bd2
{[%clk 0:01:06.5]} 29. Rc7+ {[%clk 0:00:11.4]} 29... Kb6 {[%clk 0:01:05.5]} 30.
Rxh7 {[%clk 0:00:10.6]} 30... Rd3 {[%clk 0:01:05.2]} 31. Re7 {[%clk 0:00:10]}
31... Bb4 {[%clk 0:01:04.1]} 32. Re6+ {[%clk 0:00:10]} 32... Ka7 {[%clk
0:01:02.2]} 33. Nd4 {[%clk 0:00:10.5]} 33... Rxa6 {[%clk 0:00:53.3]} 34. Rxa6+
{[%clk 0:00:11.1]} 34... Kxa6 {[%clk 0:00:54.2]} 35. Ke4 {[%clk 0:00:11.7]}
35... Ra3 {[%clk 0:00:53.1]} 36. h4 {[%clk 0:00:12]} 36... Bd2 {[%clk
0:00:52.6]} 37. Rh3 {[%clk 0:00:10.8]} 37... Kb6 {[%clk 0:00:53.2]} 38. h5
{[%clk 0:00:11]} 38... Ra7 {[%clk 0:00:52.7]} 39. h6 {[%clk 0:00:11.1]} 39...
Rh7 {[%clk 0:00:53.4]} 40. Kf5 {[%clk 0:00:10.6]} 40... Kc5 {[%clk 0:00:51.4]}
41. Kg6 {[%clk 0:00:10.8]} 41... Rh8 {[%clk 0:00:51.2]} 42. Kg7 {[%clk
0:00:11.4]} 42... Rd8 {[%clk 0:00:51]} 43. Ne6+ {[%clk 0:00:11.1]} 43... Kd6
{[%clk 0:00:51]} 44. Nxd8 {[%clk 0:00:12]} 44... Bc3 {[%clk 0:00:51.6]} 45. Nf7+
{[%clk 0:00:12.4]} 1-0

[Event "Early-Titled-Tuesday-Blitz-January-30-2024"]
[Site "Chess.com"]
[Date "2024.01.30"]
[Round "6"]
[White "profedechess93"]
[Black "LimeInTheCoconut"]
[Result "1-0"]
[WhiteElo "2627"]
[BlackElo "2469"]
[TimeControl "180+1"]
[EndTime "9:08:09 PST"]
[Termination "profedechess93 won on time"]

1. e4 {[%clk 0:03:00.9]} 1... e5 {[%clk 0:02:57.2]} 2. Nf3 {[%clk 0:03:00]} 2...
Nc6 {[%clk 0:02:56.6]} 3. Bc4 {[%clk 0:02:59.6]} 3... Bc5 {[%clk 0:02:55.8]} 4.
b4 {[%clk 0:02:59.6]} 4... Bxb4 {[%clk 0:02:54.7]} 5. c3 {[%clk 0:03:00.2]} 5...
Be7 {[%clk 0:02:50.3]} 6. d4 {[%clk 0:03:00.4]} 6... Na5 {[%clk 0:02:50.9]} 7.
Be2 {[%clk 0:03:00.2]} 7... d6 {[%clk 0:02:41.1]} 8. Qa4+ {[%clk 0:03:00.2]}
8... c6 {[%clk 0:02:40.2]} 9. dxe5 {[%clk 0:03:00.9]} 9... dxe5 {[%clk
0:02:33.8]} 10. Nxe5 {[%clk 0:03:01.8]} 10... Nf6 {[%clk 0:02:25.4]} 11. O-O
{[%clk 0:03:01.7]} 11... b5 {[%clk 0:02:08]} 12. Qc2 {[%clk 0:03:01]} 12... O-O
{[%clk 0:02:04.7]} 13. Rd1 {[%clk 0:03:01.6]} 13... Qe8 {[%clk 0:01:46.7]} 14.
Nd2 {[%clk 0:02:35.3]} 14... Bc5 {[%clk 0:01:38.2]} 15. Ndf3 {[%clk 0:02:32.7]}
15... Ng4 {[%clk 0:01:31.1]} 16. Nxg4 {[%clk 0:02:15.8]} 16... Bxg4 {[%clk
0:01:32]} 17. a4 {[%clk 0:02:11.5]} 17... a6 {[%clk 0:01:27.7]} 18. Bf4 {[%clk
0:01:58.1]} 18... Be6 {[%clk 0:01:22]} 19. e5 {[%clk 0:01:54.1]} 19... Bb3
{[%clk 0:01:18.1]} 20. Qe4 {[%clk 0:01:54.3]} 20... Bxd1 {[%clk 0:01:17.4]} 21.
Rxd1 {[%clk 0:01:54]} 21... Qe6 {[%clk 0:01:06.4]} 22. Ng5 {[%clk 0:01:45.9]}
22... Qg6 {[%clk 0:00:58.9]} 23. Qf3 {[%clk 0:01:45.4]} 23... Rad8 {[%clk
0:00:49.6]} 24. Re1 {[%clk 0:01:14.5]} 24... Be7 {[%clk 0:00:47.8]} 25. Ne4
{[%clk 0:01:11.3]} 25... Nc4 {[%clk 0:00:42.2]} 26. axb5 {[%clk 0:01:10.5]}
26... cxb5 {[%clk 0:00:38.9]} 27. Bd1 {[%clk 0:01:09.4]} 27... Rd7 {[%clk
0:00:21.4]} 28. Bc2 {[%clk 0:01:09.2]} 28... Qe6 {[%clk 0:00:17.6]} 29. Qh5
{[%clk 0:01:04.3]} 29... g6 {[%clk 0:00:16]} 30. Qh6 {[%clk 0:01:03]} 30... Nxe5
{[%clk 0:00:08.2]} 31. h3 {[%clk 0:00:55.2]} 31... f6 {[%clk 0:00:06.2]} 32. Ng5
{[%clk 0:00:46.4]} 32... fxg5 {[%clk 0:00:05.3]} 33. Bxe5 {[%clk 0:00:43.2]}
33... Qf7 {[%clk 0:00:04.8]} 34. Bb3 {[%clk 0:00:41.7]} 1-0

[Event "Early-Titled-Tuesday-Blitz-January-30-2024"]
[Site "Chess.com"]
[Date "2024.01.30"]
[Round "6"]
[White "deepfear"]
[Black "giovannibrandao7"]
[Result "1-0"]
[WhiteElo "1945"]
[BlackElo "2120"]
[TimeControl "180+1"]
[EndTime "9:08:09 PST"]
[Termination "deepfear won by resignation"]

1. e4 {[%clk 0:02:59.7]} 1... c5 {[%clk 0:02:57.9]} 2. Nc3 {[%clk 0:02:59]} 2...
d6 {[%clk 0:02:57.4]} 3. f4 {[%clk 0:02:57.6]} 3... Nc6 {[%clk 0:02:56.9]} 4.
Nf3 {[%clk 0:02:57.7]} 4... g6 {[%clk 0:02:57.3]} 5. Bc4 {[%clk 0:02:55.7]} 5...
Bg7 {[%clk 0:02:57.5]} 6. O-O {[%clk 0:02:51.6]} 6... e6 {[%clk 0:02:57.9]} 7.
f5 {[%clk 0:02:41.8]} 7... exf5 {[%clk 0:02:43.8]} 8. exf5 {[%clk 0:02:20.4]}
8... Bxf5 {[%clk 0:02:11.9]} 9. d3 {[%clk 0:02:01.8]} 9... h6 {[%clk 0:01:22.1]}
10. Re1+ {[%clk 0:01:51.2]} 10... Nge7 {[%clk 0:01:17.7]} 11. Bf4 {[%clk
0:01:22.1]} 11... O-O {[%clk 0:01:10.2]} 12. Qd2 {[%clk 0:01:07.9]} 12... Kh7
{[%clk 0:01:08.5]} 13. Rab1 {[%clk 0:00:54.1]} 13... d5 {[%clk 0:01:05.3]} 14.
Bb3 {[%clk 0:00:46.1]} 14... d4 {[%clk 0:00:41.5]} 15. Ne4 {[%clk 0:00:46]}
15... Bxe4 {[%clk 0:00:41]} 16. Rxe4 {[%clk 0:00:44.2]} 16... Nd5 {[%clk
0:00:40.2]} 17. Bxd5 {[%clk 0:00:20.7]} 17... Qxd5 {[%clk 0:00:39.2]} 18. Bxh6
{[%clk 0:00:18]} 18... Bf6 {[%clk 0:00:07.7]} 19. Bf4 {[%clk 0:00:14]} 19... Rh8
{[%clk 0:00:05]} 20. Rbe1 {[%clk 0:00:13.6]} 20... Kg7 {[%clk 0:00:04.7]} 21.
Be5 {[%clk 0:00:12.2]} 21... Nxe5 {[%clk 0:00:04]} 22. Nxe5 {[%clk 0:00:12.7]}
22... Bxe5 {[%clk 0:00:04.4]} 23. Rxe5 {[%clk 0:00:13]} 23... Qd6 {[%clk
0:00:05]} 24. Qf2 {[%clk 0:00:11]} 24... Rae8 {[%clk 0:00:05]} 25. Rxe8 {[%clk
0:00:09.8]} 1-0

[Event "Early-Titled-Tuesday-Blitz-January-30-2024"]
[Site "Chess.com"]
[Date "2024.01.30"]
[Round "6"]
[White "themind1hunter"]
[Black "Alexei_Kornev"]
[Result "1-0"]
[WhiteElo "2550"]
[BlackElo "2709"]
[TimeControl "180+1"]
[EndTime "9:08:11 PST"]
[Termination "themind1hunter won by resignation"]

1. e4 {[%clk 0:02:46.6]} 1... c5 {[%clk 0:02:59.4]} 2. Nf3 {[%clk 0:02:44.2]}
2... d6 {[%clk 0:02:59.4]} 3. d4 {[%clk 0:02:44.5]} 3... cxd4 {[%clk 0:03:00.3]}
4. Nxd4 {[%clk 0:02:44.8]} 4... Nf6 {[%clk 0:03:00.8]} 5. Nc3 {[%clk 0:02:45.4]}
5... a6 {[%clk 0:03:01.2]} 6. Be3 {[%clk 0:02:43]} 6... e6 {[%clk 0:03:01]} 7.
f3 {[%clk 0:02:31.7]} 7... b5 {[%clk 0:03:00.5]} 8. Qd2 {[%clk 0:02:31.5]} 8...
Nbd7 {[%clk 0:02:58.3]} 9. g4 {[%clk 0:02:31.5]} 9... h6 {[%clk 0:02:58]} 10.
O-O-O {[%clk 0:02:25.5]} 10... b4 {[%clk 0:02:57.8]} 11. Nce2 {[%clk 0:02:25.3]}
11... Ne5 {[%clk 0:02:55]} 12. Ng3 {[%clk 0:01:53.3]} 12... Qc7 {[%clk
0:02:47.6]} 13. Kb1 {[%clk 0:01:42.8]} 13... Be7 {[%clk 0:02:35.5]} 14. h4
{[%clk 0:01:38.9]} 14... Nc4 {[%clk 0:02:24]} 15. Bxc4 {[%clk 0:01:36.4]} 15...
Qxc4 {[%clk 0:02:24.9]} 16. g5 {[%clk 0:01:36.3]} 16... Nd7 {[%clk 0:02:21.9]}
17. Nh5 {[%clk 0:01:24.5]} 17... Bf8 {[%clk 0:02:10.3]} 18. b3 {[%clk
0:00:53.5]} 18... Qc7 {[%clk 0:02:09.2]} 19. g6 {[%clk 0:00:52.9]} 19... Nc5
{[%clk 0:02:04.5]} 20. gxf7+ {[%clk 0:00:52.7]} 20... Qxf7 {[%clk 0:02:05.4]}
21. Ng3 {[%clk 0:00:48.3]} 21... a5 {[%clk 0:02:05]} 22. Nb5 {[%clk 0:00:47.3]}
22... Qd7 {[%clk 0:01:47.6]} 23. Bxc5 {[%clk 0:00:41]} 23... Qxb5 {[%clk
0:01:44.2]} 24. Bxd6 {[%clk 0:00:41.1]} 24... Bd7 {[%clk 0:01:37.7]} 25. Qd4
{[%clk 0:00:30]} 25... Bxd6 {[%clk 0:01:30.9]} 26. Qxd6 {[%clk 0:00:29.2]} 26...
a4 {[%clk 0:01:31.1]} 27. Nh5 {[%clk 0:00:27.6]} 27... Rg8 {[%clk 0:01:25]} 28.
Rhg1 {[%clk 0:00:26.4]} 28... axb3 {[%clk 0:01:23.5]} 29. cxb3 {[%clk
0:00:18.3]} 29... Ra7 {[%clk 0:00:32.5]} 30. Nf6+ {[%clk 0:00:16.2]} 30... Kf7
{[%clk 0:00:33]} 31. Nxd7 {[%clk 0:00:16.3]} 31... Re8 {[%clk 0:00:26.3]} 32.
Qf4+ {[%clk 0:00:13.7]} 32... Ke7 {[%clk 0:00:24.6]} 33. Rxg7+ {[%clk
0:00:12.4]} 1-0

[Event "Early-Titled-Tuesday-Blitz-January-30-2024"]
[Site "Chess.com"]
[Date "2024.01.30"]
[Round "6"]
[White "EsmeraldasAnderson03"]
[Black "Lion-Al-Messi"]
[Result "0-1"]
[WhiteElo "2408"]
[BlackElo "2560"]
[TimeControl "180+1"]
[EndTime "9:08:12 PST"]
[Termination "Lion-Al-Messi won by checkmate"]

1. d4 {[%clk 0:03:00.9]} 1... d5 {[%clk 0:02:35]} 2. c4 {[%clk 0:03:00.2]} 2...
c6 {[%clk 0:02:32.3]} 3. cxd5 {[%clk 0:02:59.9]} 3... cxd5 {[%clk 0:02:33.2]} 4.
Nc3 {[%clk 0:03:00.5]} 4... Nf6 {[%clk 0:02:33.1]} 5. Bf4 {[%clk 0:03:01.2]}
5... Nc6 {[%clk 0:02:31.9]} 6. e3 {[%clk 0:03:01.9]} 6... Bg4 {[%clk 0:02:31.5]}
7. Nf3 {[%clk 0:03:02]} 7... e6 {[%clk 0:02:31]} 8. h3 {[%clk 0:03:02.2]} 8...
Bh5 {[%clk 0:02:30.5]} 9. Bd3 {[%clk 0:03:01.4]} 9... Be7 {[%clk 0:02:30.7]} 10.
O-O {[%clk 0:03:01.5]} 10... O-O {[%clk 0:02:31]} 11. a3 {[%clk 0:03:02.2]}
11... Rc8 {[%clk 0:02:30.2]} 12. Rc1 {[%clk 0:03:01.8]} 12... Na5 {[%clk
0:02:30.1]} 13. b4 {[%clk 0:02:59.9]} 13... Nc4 {[%clk 0:02:29.9]} 14. Bxc4
{[%clk 0:02:58]} 14... Rxc4 {[%clk 0:02:30.5]} 15. Qb3 {[%clk 0:02:57.3]} 15...
Bxf3 {[%clk 0:02:30]} 16. gxf3 {[%clk 0:02:58.2]} 16... Nh5 {[%clk 0:02:29.9]}
17. Bh2 {[%clk 0:02:58.2]} 17... Bd6 {[%clk 0:02:22.4]} 18. Ne2 {[%clk
0:02:56.2]} 18... Qg5+ {[%clk 0:02:21.5]} 19. Kh1 {[%clk 0:02:54.4]} 19... Qf5
{[%clk 0:02:20.9]} 20. Ng1 {[%clk 0:02:48.3]} 20... Bxh2 {[%clk 0:02:19.7]} 21.
Kxh2 {[%clk 0:02:49.2]} 21... Rfc8 {[%clk 0:02:17.3]} 22. Rxc4 {[%clk
0:02:44.9]} 22... dxc4 {[%clk 0:02:17.2]} 23. Qc3 {[%clk 0:02:43.5]} 23... b5
{[%clk 0:02:15.3]} 24. Kg2 {[%clk 0:02:30.5]} 24... Qg6+ {[%clk 0:02:14]} 25.
Kh2 {[%clk 0:02:30.3]} 25... Rd8 {[%clk 0:02:13.7]} 26. a4 {[%clk 0:02:29]}
26... Rd5 {[%clk 0:02:13.8]} 27. f4 {[%clk 0:02:23.5]} 27... h6 {[%clk
0:02:12.2]} 28. axb5 {[%clk 0:02:21.3]} 28... Qe4 {[%clk 0:02:02.9]} 29. Ne2
{[%clk 0:02:07.2]} 29... Qf3 {[%clk 0:01:57.6]} 30. Ng1 {[%clk 0:02:07.1]} 30...
Qe4 {[%clk 0:01:56.3]} 31. f3 {[%clk 0:02:00.3]} 31... Qf5 {[%clk 0:01:52.4]}
32. Ne2 {[%clk 0:01:57.5]} 32... Rxb5 {[%clk 0:01:40.5]} 33. Qxc4 {[%clk
0:01:52.5]} 33... Rb8 {[%clk 0:01:33.1]} 34. Rg1 {[%clk 0:01:50.4]} 34... g6
{[%clk 0:01:31.1]} 35. Ng3 {[%clk 0:01:37.7]} 35... Nxg3 {[%clk 0:01:31.1]} 36.
Kxg3 {[%clk 0:01:37.2]} 36... a5 {[%clk 0:01:31.6]} 37. bxa5 {[%clk 0:01:31.5]}
37... Qxa5 {[%clk 0:01:32.5]} 38. Rc1 {[%clk 0:01:19.1]} 38... Rb2 {[%clk
0:01:30.6]} 39. Qc8+ {[%clk 0:00:36.2]} 39... Kg7 {[%clk 0:01:29.3]} 40. Qc3
{[%clk 0:00:31.9]} 40... Qa2 {[%clk 0:01:27.7]} 41. d5+ {[%clk 0:00:29.9]} 41...
Kh7 {[%clk 0:01:28.1]} 42. Rg1 {[%clk 0:00:18.2]} 42... Rh2 {[%clk 0:01:27.8]}
43. Qe1 {[%clk 0:00:17.8]} 43... Re2 {[%clk 0:01:28.2]} 44. Qd1 {[%clk
0:00:16.9]} 44... exd5 {[%clk 0:01:27.6]} 45. f5 {[%clk 0:00:16.2]} 45... Qa6
{[%clk 0:01:20.2]} 46. Qd4 {[%clk 0:00:13.3]} 46... Qd6+ {[%clk 0:01:19.5]} 47.
Qf4 {[%clk 0:00:13.3]} 47... Qf6 {[%clk 0:01:13.1]} 48. fxg6+ {[%clk 0:00:12.1]}
48... Qxg6+ {[%clk 0:01:13.3]} 49. Qg4 {[%clk 0:00:12.2]} 49... Qd6+ {[%clk
0:01:13.6]} 50. Qf4 {[%clk 0:00:12.1]} 50... Qe6 {[%clk 0:01:13]} 51. e4 {[%clk
0:00:03.2]} 51... dxe4 {[%clk 0:01:12]} 52. fxe4 {[%clk 0:00:04.1]} 52... Rxe4
{[%clk 0:01:11.5]} 53. Qf2 {[%clk 0:00:04]} 53... Re3+ {[%clk 0:01:11.7]} 54.
Kh4 {[%clk 0:00:03.5]} 54... Qxh3# {[%clk 0:01:11.6]} 0-1